[Event "Titled Tuesday Blitz November 22 Early 2022"]
[White "Shuvalov, Evgenij"]
[Black "Pranav, V"]
[WhiteFideId "4187237"]
[BlackFideId "25060783"]
[WhiteElo "2049"]
[BlackElo "2430"]
[Result "0-1"]
[Round "08"]
[TimeControl "180+1"]
[Date "2022.11.23"]
[WhiteClock "0:00:01"]
[BlackClock "0:00:08"]

1. d4 {[%clk 0:02:59]}  Nf6 {[%clk 0:03:00]} 2. c4 {[%clk 0:02:58]}  e6 {[%clk 0:03:00]} 3. Nf3 {[%clk 0:02:58]}  d5 {[%clk 0:03:00]} 4. Nc3 {[%clk 0:02:57]}  Be7 {[%clk 0:03:00]} 5. cxd5 {[%clk 0:02:57]}  exd5 {[%clk 0:03:01]} 6. Bg5 {[%clk 0:02:56]}  O-O {[%clk 0:03:01]} 7. Qc2 {[%clk 0:02:56]}  c6 {[%clk 0:03:02]} 8. e3 {[%clk 0:02:56]}  Re8 {[%clk 0:03:02]} 9. Bd3 {[%clk 0:02:56]}  Nbd7 {[%clk 0:03:02]} 10. O-O {[%clk 0:02:55]}  Nf8 {[%clk 0:03:02]} 11. h3 {[%clk 0:02:54]}  h6 {[%clk 0:03:02]} 12. Bf4 {[%clk 0:02:52]}  Bd6 {[%clk 0:03:00]} 13. Bxd6 {[%clk 0:02:51]}  Qxd6 {[%clk 0:03:01]} 14. Ne5 {[%clk 0:02:51]}  N6d7 {[%clk 0:02:53]} 15. f4 {[%clk 0:02:43]}  f6 {[%clk 0:02:53]} 16. Bg6 {[%clk 0:02:22]}  Nxg6 {[%clk 0:02:53]} 17. Qxg6 {[%clk 0:02:19]}  Qe6 {[%clk 0:02:53]} 18. Ng4 {[%clk 0:02:10]}  Kf8 {[%clk 0:02:47]} 19. Rae1 {[%clk 0:01:46]}  Qf7 {[%clk 0:02:46]} 20. Qh7 {[%clk 0:01:32]}  Qg8 {[%clk 0:02:38]} 21. Qg6 {[%clk 0:01:32]}  Qf7 {[%clk 0:02:26]} 22. Qh7 {[%clk 0:01:32]}  f5 {[%clk 0:02:17]} 23. Ne5 {[%clk 0:01:30]}  Nxe5 {[%clk 0:02:17]} 24. fxe5 {[%clk 0:01:10]}  Ke7 {[%clk 0:01:58]} 25. g4 {[%clk 0:00:54]}  Rf8 {[%clk 0:01:37]} 26. e4 {[%clk 0:00:40]}  dxe4 {[%clk 0:00:37]} 27. Nxe4 {[%clk 0:00:40]}  Be6 {[%clk 0:00:36]} 28. Nd6 {[%clk 0:00:21]}  Qg8 {[%clk 0:00:35]} 29. Qxg8 {[%clk 0:00:17]}  Bxg8 {[%clk 0:00:33]} 30. Nxf5+ {[%clk 0:00:15]}  Kd7 {[%clk 0:00:32]} 31. a3 {[%clk 0:00:14]}  Bc4 {[%clk 0:00:26]} 32. Rf2 {[%clk 0:00:14]}  g6 {[%clk 0:00:27]} 33. Nxh6 {[%clk 0:00:13]}  Rh8 {[%clk 0:00:27]} 34. g5 {[%clk 0:00:13]}  Rad8 {[%clk 0:00:27]} 35. Rf4 {[%clk 0:00:11]}  Be6 {[%clk 0:00:24]} 36. Re3 {[%clk 0:00:10]}  Ke7 {[%clk 0:00:23]} 37. h4 {[%clk 0:00:10]}  c5 {[%clk 0:00:22]} 38. dxc5 {[%clk 0:00:09]}  Rd1+ {[%clk 0:00:23]} 39. Kg2 {[%clk 0:00:09]}  Rd2+ {[%clk 0:00:23]} 40. Rf2 {[%clk 0:00:09]}  Rd4 {[%clk 0:00:23]} 41. Kg3 {[%clk 0:00:09]}  Rhd8 {[%clk 0:00:23]} 42. b4 {[%clk 0:00:07]}  Rd1 {[%clk 0:00:23]} 43. Ref3 {[%clk 0:00:06]}  R8d4 {[%clk 0:00:18]} 44. Rf4 {[%clk 0:00:06]}  R4d3+ {[%clk 0:00:10]} 45. R2f3 {[%clk 0:00:05]}  R3d2 {[%clk 0:00:09]} 46. Rf2 {[%clk 0:00:03]}  Rd5 {[%clk 0:00:09]} 47. Rf1 {[%clk 0:00:03]}  R1d3+ {[%clk 0:00:07]} 48. R4f3 {[%clk 0:00:02]}  R3d4 {[%clk 0:00:06]} 49. Rf4 {[%clk 0:00:01]}  Rd2 {[%clk 0:00:07]} 50. R4f2 {[%clk 0:00:01]}  R5d3+ {[%clk 0:00:07]} 51. Rf3 {[%clk 0:00:01]}  Rd8 {[%clk 0:00:08]} 0-1


[Site "https://www.chess.com"]

[Event "Titled Tuesday Blitz November 22 Early 2022"]
[White "Streltsov, Alexey"]
[Black "Harsh Suresh"]
[WhiteFideId "24104434"]
[BlackFideId "45018464"]
[WhiteElo "2547"]
[BlackElo "2227"]
[Result "0-1"]
[Round "08"]
[TimeControl "180+1"]
[Date "2022.11.23"]
[WhiteClock "0:00:12"]
[BlackClock "0:00:14"]

1. d4 {[%clk 0:03:00]}  Nf6 {[%clk 0:02:57]} 2. Nc3 {[%clk 0:03:00]}  g6 {[%clk 0:02:45]} 3. e4 {[%clk 0:03:00]}  d6 {[%clk 0:02:45]} 4. Bf4 {[%clk 0:03:01]}  Bg7 {[%clk 0:02:46]} 5. Qd2 {[%clk 0:03:01]}  O-O {[%clk 0:02:46]} 6. Bh6 {[%clk 0:03:02]}  e5 {[%clk 0:02:43]} 7. Bxg7 {[%clk 0:02:59]}  Kxg7 {[%clk 0:02:43]} 8. Nf3 {[%clk 0:02:56]}  Nc6 {[%clk 0:02:42]} 9. O-O-O {[%clk 0:02:35]}  Bg4 {[%clk 0:02:41]} 10. dxe5 {[%clk 0:02:33]}  Nxe5 {[%clk 0:02:32]} 11. Be2 {[%clk 0:02:31]}  Nxf3 {[%clk 0:02:22]} 12. gxf3 {[%clk 0:02:30]}  Bh5 {[%clk 0:02:22]} 13. Rhg1 {[%clk 0:02:24]}  Qe7 {[%clk 0:02:16]} 14. Qg5 {[%clk 0:02:15]}  Qe5 {[%clk 0:02:11]} 15. f4 {[%clk 0:02:08]}  Qxg5 {[%clk 0:02:05]} 16. fxg5 {[%clk 0:02:08]}  Nxe4 {[%clk 0:02:03]} 17. Nxe4 {[%clk 0:01:45]}  Bxe2 {[%clk 0:02:01]} 18. Rde1 {[%clk 0:01:46]}  Bc4 {[%clk 0:01:59]} 19. Nf6 {[%clk 0:01:41]}  Be6 {[%clk 0:01:59]} 20. h4 {[%clk 0:01:40]}  h6 {[%clk 0:01:57]} 21. f4 {[%clk 0:01:28]}  Rh8 {[%clk 0:01:51]} 22. Rh1 {[%clk 0:01:27]}  hxg5 {[%clk 0:01:43]} 23. fxg5 {[%clk 0:01:28]}  b5 {[%clk 0:01:41]} 24. b3 {[%clk 0:01:28]}  a5 {[%clk 0:01:41]} 25. a3 {[%clk 0:01:24]}  b4 {[%clk 0:01:37]} 26. a4 {[%clk 0:01:24]}  Ra6 {[%clk 0:01:35]} 27. Re4 {[%clk 0:01:18]}  Rc6 {[%clk 0:01:35]} 28. Rhe1 {[%clk 0:01:18]}  Bxb3 {[%clk 0:01:24]} 29. Kb2 {[%clk 0:01:11]}  Be6 {[%clk 0:01:12]} 30. Rxe6 {[%clk 0:01:10]}  fxe6 {[%clk 0:01:12]} 31. Rxe6 {[%clk 0:01:11]}  Rxh4 {[%clk 0:00:50]} 32. Re7+ {[%clk 0:00:41]}  Kf8 {[%clk 0:00:50]} 33. Rd7 {[%clk 0:00:42]}  Rc5 {[%clk 0:00:40]} 34. Nh7+ {[%clk 0:00:36]}  Rxh7 {[%clk 0:00:39]} 35. Rxh7 {[%clk 0:00:37]}  Rxg5 {[%clk 0:00:28]} 36. Rxc7 {[%clk 0:00:37]}  Rd5 {[%clk 0:00:28]} 37. c4 {[%clk 0:00:21]}  bxc3+ {[%clk 0:00:21]} 38. Rxc3 {[%clk 0:00:22]}  Kf7 {[%clk 0:00:20]} 39. Kb3 {[%clk 0:00:19]}  g5 {[%clk 0:00:19]} 40. Rf3+ {[%clk 0:00:15]}  Ke6 {[%clk 0:00:19]} 41. Kc4 {[%clk 0:00:16]}  Rf5 {[%clk 0:00:18]} 42. Rb3 {[%clk 0:00:14]}  Rf4+ {[%clk 0:00:13]} 43. Kb5 {[%clk 0:00:07]}  Rb4+ {[%clk 0:00:12]} 44. Rxb4 {[%clk 0:00:08]}  axb4 {[%clk 0:00:13]} 45. Kxb4 {[%clk 0:00:09]}  g4 {[%clk 0:00:13]} 46. a5 {[%clk 0:00:09]}  Kd7 {[%clk 0:00:13]} 47. Kb5 {[%clk 0:00:09]}  Kc7 {[%clk 0:00:13]} 48. Ka6 {[%clk 0:00:09]}  g3 {[%clk 0:00:13]} 49. Ka7 {[%clk 0:00:10]}  g2 {[%clk 0:00:13]} 50. a6 {[%clk 0:00:11]}  g1=Q+ {[%clk 0:00:13]} 51. Ka8 {[%clk 0:00:12]}  Qg8+ {[%clk 0:00:14]} 0-1


[Site "https://www.chess.com"]

[Event "Titled Tuesday Blitz November 22 Early 2022"]
[White "Timofeev, Artyom"]
[Black "Begmuratov, Khumoyun"]
[WhiteFideId "4140419"]
[BlackFideId "14210207"]
[WhiteElo "2586"]
[BlackElo "2267"]
[Result "0-1"]
[Round "08"]
[TimeControl "180+1"]
[Date "2022.11.22"]
[WhiteClock "0:00:03"]
[BlackClock "0:00:04"]

1. d4 {[%clk 0:03:00]}  Nf6 {[%clk 0:02:59]} 2. Bf4 {[%clk 0:03:00]}  e6 {[%clk 0:02:56]} 3. e3 {[%clk 0:02:58]}  b6 {[%clk 0:02:55]} 4. Nf3 {[%clk 0:02:57]}  Bb7 {[%clk 0:02:55]} 5. h3 {[%clk 0:02:56]}  g6 {[%clk 0:02:55]} 6. Bd3 {[%clk 0:02:54]}  Bg7 {[%clk 0:02:55]} 7. O-O {[%clk 0:02:53]}  d6 {[%clk 0:02:55]} 8. Bh2 {[%clk 0:02:51]}  Nbd7 {[%clk 0:02:55]} 9. Nbd2 {[%clk 0:02:51]}  O-O {[%clk 0:02:55]} 10. e4 {[%clk 0:02:45]}  Qe7 {[%clk 0:02:46]} 11. e5 {[%clk 0:02:34]}  dxe5 {[%clk 0:02:42]} 12. dxe5 {[%clk 0:02:34]}  Nd5 {[%clk 0:02:41]} 13. a3 {[%clk 0:02:34]}  c5 {[%clk 0:02:35]} 14. c4 {[%clk 0:02:31]}  Nc7 {[%clk 0:02:35]} 15. Ne4 {[%clk 0:02:25]}  Rad8 {[%clk 0:02:31]} 16. Qe2 {[%clk 0:02:25]}  Nb8 {[%clk 0:02:27]} 17. Nf6+ {[%clk 0:02:20]}  Kh8 {[%clk 0:02:23]} 18. Be4 {[%clk 0:02:15]}  Bxe4 {[%clk 0:02:09]} 19. Qxe4 {[%clk 0:02:03]}  Ne8 {[%clk 0:02:09]} 20. Ng4 {[%clk 0:01:59]}  h5 {[%clk 0:02:03]} 21. Ne3 {[%clk 0:01:57]}  Nc7 {[%clk 0:01:37]} 22. g4 {[%clk 0:01:42]}  Bh6 {[%clk 0:01:31]} 23. Kg2 {[%clk 0:01:37]}  Qe8 {[%clk 0:01:12]} 24. Bf4 {[%clk 0:01:33]}  Bg7 {[%clk 0:00:59]} 25. gxh5 {[%clk 0:01:33]}  gxh5 {[%clk 0:01:00]} 26. Bg5 {[%clk 0:01:14]}  f6 {[%clk 0:00:59]} 27. exf6 {[%clk 0:01:11]}  Bxf6 {[%clk 0:00:59]} 28. h4 {[%clk 0:00:58]}  Bxg5 {[%clk 0:00:46]} 29. Nxg5 {[%clk 0:00:57]}  Qc6 {[%clk 0:00:45]} 30. Rad1 {[%clk 0:00:42]}  Qxe4+ {[%clk 0:00:43]} 31. Nxe4 {[%clk 0:00:42]}  Nc6 {[%clk 0:00:44]} 32. Ng5 {[%clk 0:00:40]}  Nd4 {[%clk 0:00:42]} 33. b4 {[%clk 0:00:39]}  Rf4 {[%clk 0:00:39]} 34. bxc5 {[%clk 0:00:32]}  bxc5 {[%clk 0:00:40]} 35. Kh3 {[%clk 0:00:32]}  Rdf8 {[%clk 0:00:38]} 36. Rd2 {[%clk 0:00:23]}  Ne8 {[%clk 0:00:27]} 37. Ng2 {[%clk 0:00:23]}  R4f5 {[%clk 0:00:24]} 38. f4 {[%clk 0:00:23]}  Nf6 {[%clk 0:00:19]} 39. Ne3 {[%clk 0:00:22]}  Rb8 {[%clk 0:00:11]} 40. Nxf5 {[%clk 0:00:21]}  exf5 {[%clk 0:00:12]} 41. Rd3 {[%clk 0:00:19]}  Rb2 {[%clk 0:00:11]} 42. Re1 {[%clk 0:00:17]}  Ng4 {[%clk 0:00:10]} 43. Kg3 {[%clk 0:00:16]}  Ne2+ {[%clk 0:00:09]} 44. Rxe2 {[%clk 0:00:16]}  Rxe2 {[%clk 0:00:09]} 45. Rd5 {[%clk 0:00:15]}  Re3+ {[%clk 0:00:09]} 46. Kg2 {[%clk 0:00:15]}  Re2+ {[%clk 0:00:09]} 47. Kf1 {[%clk 0:00:14]}  Ra2 {[%clk 0:00:08]} 48. Rxc5 {[%clk 0:00:14]}  Ne3+ {[%clk 0:00:09]} 49. Kg1 {[%clk 0:00:12]}  Rxa3 {[%clk 0:00:08]} 50. Rc8+ {[%clk 0:00:10]}  Kg7 {[%clk 0:00:08]} 51. c5 {[%clk 0:00:11]}  Rc3 {[%clk 0:00:07]} 52. c6 {[%clk 0:00:11]}  Nd5 {[%clk 0:00:07]} 53. Rd8 {[%clk 0:00:07]}  Nxf4 {[%clk 0:00:06]} 54. Rd7+ {[%clk 0:00:08]}  Kf6 {[%clk 0:00:06]} 55. c7 {[%clk 0:00:08]}  a5 {[%clk 0:00:06]} 56. Nh7+ {[%clk 0:00:07]}  Ke6 {[%clk 0:00:06]} 57. Nf8+ {[%clk 0:00:07]}  Ke5 {[%clk 0:00:05]} 58. Rf7 {[%clk 0:00:03]}  a4 {[%clk 0:00:04]} 59. Nd7+ {[%clk 0:00:03]}  Ke6 {[%clk 0:00:04]} 0-1


[Site "https://www.chess.com"]

[Event "Titled Tuesday Blitz November 22 Early 2022"]
[White "Tologon tegin, Semetei"]
[Black "Papasimakopoulos, Alexandros"]
[WhiteFideId "13800574"]
[BlackFideId "4244125"]
[WhiteElo "2282"]
[BlackElo "2365"]
[Result "1-0"]
[Round "08"]
[TimeControl "180+1"]
[Date "2022.11.23"]
[WhiteClock "0:00:15"]
[BlackClock "0:00:08"]

1. e4 {[%clk 0:02:54]}  e6 {[%clk 0:02:56]} 2. d4 {[%clk 0:02:54]}  d5 {[%clk 0:02:56]} 3. e5 {[%clk 0:02:54]}  b6 {[%clk 0:02:51]} 4. c3 {[%clk 0:02:51]}  Qd7 {[%clk 0:02:49]} 5. Nf3 {[%clk 0:02:43]}  Ne7 {[%clk 0:02:49]} 6. h4 {[%clk 0:02:30]}  h5 {[%clk 0:02:45]} 7. Bg5 {[%clk 0:02:28]}  Nf5 {[%clk 0:02:44]} 8. Nbd2 {[%clk 0:02:23]}  Ba6 {[%clk 0:02:43]} 9. Bxa6 {[%clk 0:02:22]}  Nxa6 {[%clk 0:02:44]} 10. Qe2 {[%clk 0:02:21]}  Nb8 {[%clk 0:02:45]} 11. a4 {[%clk 0:02:16]}  c5 {[%clk 0:02:32]} 12. a5 {[%clk 0:02:14]}  b5 {[%clk 0:02:26]} 13. dxc5 {[%clk 0:02:09]}  Bxc5 {[%clk 0:02:27]} 14. b4 {[%clk 0:02:04]}  Be7 {[%clk 0:02:27]} 15. Nb3 {[%clk 0:02:04]}  a6 {[%clk 0:02:18]} 16. O-O {[%clk 0:02:01]}  Qc7 {[%clk 0:02:16]} 17. Bxe7 {[%clk 0:01:37]}  Qxe7 {[%clk 0:02:06]} 18. g3 {[%clk 0:01:33]}  Nc6 {[%clk 0:02:05]} 19. Nc5 {[%clk 0:01:30]}  g6 {[%clk 0:02:00]} 20. Rfd1 {[%clk 0:01:26]}  Kf8 {[%clk 0:01:52]} 21. Rab1 {[%clk 0:01:25]}  Kg7 {[%clk 0:01:52]} 22. Nd4 {[%clk 0:01:24]}  Ncxd4 {[%clk 0:01:27]} 23. cxd4 {[%clk 0:01:21]}  g5 {[%clk 0:01:23]} 24. hxg5 {[%clk 0:01:20]}  Qxg5 {[%clk 0:01:24]} 25. Rb3 {[%clk 0:01:15]}  h4 {[%clk 0:01:23]} 26. g4 {[%clk 0:01:14]}  Ne7 {[%clk 0:01:14]} 27. Kh1 {[%clk 0:01:00]}  Ng6 {[%clk 0:01:09]} 28. Rg1 {[%clk 0:00:59]}  Ra7 {[%clk 0:01:08]} 29. Rf3 {[%clk 0:00:56]}  h3 {[%clk 0:01:04]} 30. Kh2 {[%clk 0:00:53]}  Rh4 {[%clk 0:00:59]} 31. Rf6 {[%clk 0:00:51]}  Ra8 {[%clk 0:00:45]} 32. f4 {[%clk 0:00:30]}  Nxf4 {[%clk 0:00:31]} 33. Qd2 {[%clk 0:00:30]}  Rxg4 {[%clk 0:00:24]} 34. Rxg4 {[%clk 0:00:30]}  Qxg4 {[%clk 0:00:24]} 35. Rxf4 {[%clk 0:00:30]}  Qg6 {[%clk 0:00:20]} 36. Rf3 {[%clk 0:00:29]}  Kf8 {[%clk 0:00:19]} 37. Rg3 {[%clk 0:00:27]}  Qh7 {[%clk 0:00:18]} 38. Qg5 {[%clk 0:00:24]}  Qc2+ {[%clk 0:00:15]} 39. Kxh3 {[%clk 0:00:24]}  Qh7+ {[%clk 0:00:15]} 40. Qh4 {[%clk 0:00:22]}  Qxh4+ {[%clk 0:00:14]} 41. Kxh4 {[%clk 0:00:22]}  Ra7 {[%clk 0:00:15]} 42. Kg5 {[%clk 0:00:21]}  Ke7 {[%clk 0:00:15]} 43. Rh3 {[%clk 0:00:21]}  Ra8 {[%clk 0:00:15]} 44. Rh7 {[%clk 0:00:18]}  Rg8+ {[%clk 0:00:16]} 45. Kf4 {[%clk 0:00:18]}  Ra8 {[%clk 0:00:17]} 46. Rh6 {[%clk 0:00:17]}  Rg8 {[%clk 0:00:10]} 47. Nxa6 {[%clk 0:00:16]}  Rg1 {[%clk 0:00:11]} 48. Nc5 {[%clk 0:00:16]}  Rf1+ {[%clk 0:00:10]} 49. Ke3 {[%clk 0:00:16]}  Rb1 {[%clk 0:00:11]} 50. a6 {[%clk 0:00:16]}  Ra1 {[%clk 0:00:07]} 51. Rh8 {[%clk 0:00:16]}  f6 {[%clk 0:00:08]} 52. Rh7+ {[%clk 0:00:15]}  Kf8 {[%clk 0:00:08]} 53. exf6 {[%clk 0:00:15]}  Kg8 {[%clk 0:00:07]} 54. Rg7+ {[%clk 0:00:15]}  Kh8 {[%clk 0:00:08]} 55. a7 {[%clk 0:00:16]}  e5 {[%clk 0:00:08]} 56. dxe5 {[%clk 0:00:16]}  d4+ {[%clk 0:00:08]} 57. Ke4 {[%clk 0:00:16]}  Re1+ {[%clk 0:00:08]} 58. Kf5 {[%clk 0:00:15]}  Ra1 {[%clk 0:00:08]} 59. Rd7 {[%clk 0:00:15]}  d3 {[%clk 0:00:08]} 60. Rd8+ {[%clk 0:00:14]}  Kh7 {[%clk 0:00:08]} 61. a8=Q {[%clk 0:00:14]}  Rxa8 {[%clk 0:00:08]} 62. Rxa8 {[%clk 0:00:15]} 1-0


[Site "https://www.chess.com"]

[Event "Titled Tuesday Blitz November 22 Early 2022"]
[White "Tuleyeva-Aketayeva, Dana"]
[Black "Larina, Maria"]
[WhiteFideId "13701932"]
[BlackFideId "24113182"]
[WhiteElo "2030"]
[BlackElo "1848"]
[Result "0-1"]
[Round "08"]
[TimeControl "180+1"]
[Date "2022.11.23"]
[WhiteClock "0:00:04"]
[BlackClock "0:00:56"]

1. Nf3 {[%clk 0:03:00]}  f5 {[%clk 0:02:59]} 2. c4 {[%clk 0:02:59]}  Nf6 {[%clk 0:02:58]} 3. g3 {[%clk 0:02:59]}  g6 {[%clk 0:02:58]} 4. Bg2 {[%clk 0:02:58]}  Bg7 {[%clk 0:02:59]} 5. O-O {[%clk 0:02:58]}  O-O {[%clk 0:02:59]} 6. Nc3 {[%clk 0:02:58]}  d6 {[%clk 0:03:00]} 7. Rb1 {[%clk 0:02:56]}  e5 {[%clk 0:02:59]} 8. d4 {[%clk 0:02:55]}  e4 {[%clk 0:02:59]} 9. Ne1 {[%clk 0:02:54]}  a5 {[%clk 0:02:57]} 10. a3 {[%clk 0:02:48]}  Nc6 {[%clk 0:02:53]} 11. Bg5 {[%clk 0:02:46]}  h6 {[%clk 0:02:51]} 12. Bc1 {[%clk 0:02:39]}  Kh7 {[%clk 0:02:45]} 13. f3 {[%clk 0:02:34]}  exf3 {[%clk 0:02:43]} 14. Nxf3 {[%clk 0:02:28]}  Re8 {[%clk 0:02:37]} 15. d5 {[%clk 0:02:23]}  Ne5 {[%clk 0:02:35]} 16. Nxe5 {[%clk 0:02:23]}  Rxe5 {[%clk 0:02:34]} 17. Bf4 {[%clk 0:02:19]}  Re8 {[%clk 0:02:33]} 18. Re1 {[%clk 0:02:15]}  Ne4 {[%clk 0:02:19]} 19. Nxe4 {[%clk 0:02:12]}  fxe4 {[%clk 0:02:19]} 20. Be3 {[%clk 0:02:01]}  a4 {[%clk 0:02:17]} 21. Qc2 {[%clk 0:01:55]}  Qe7 {[%clk 0:02:16]} 22. Rf1 {[%clk 0:01:51]}  Bf5 {[%clk 0:02:10]} 23. b3 {[%clk 0:01:44]}  axb3 {[%clk 0:02:09]} 24. Rxb3 {[%clk 0:01:45]}  b6 {[%clk 0:02:09]} 25. h3 {[%clk 0:01:24]}  h5 {[%clk 0:02:07]} 26. Qd1 {[%clk 0:00:44]}  Ra5 {[%clk 0:02:03]} 27. Bd2 {[%clk 0:00:30]}  Ra6 {[%clk 0:01:58]} 28. e3 {[%clk 0:00:30]}  Rea8 {[%clk 0:01:56]} 29. Bc1 {[%clk 0:00:28]}  Be5 {[%clk 0:01:52]} 30. g4 {[%clk 0:00:21]}  hxg4 {[%clk 0:01:47]} 31. hxg4 {[%clk 0:00:22]}  Qh4 {[%clk 0:01:44]} 32. Rxf5 {[%clk 0:00:09]}  gxf5 {[%clk 0:01:37]} 33. gxf5 {[%clk 0:00:09]}  Rg8 {[%clk 0:01:25]} 34. Kf1 {[%clk 0:00:08]}  Qh2 {[%clk 0:01:20]} 35. Qe2 {[%clk 0:00:06]}  Raa8 {[%clk 0:01:09]} 36. Qf2 {[%clk 0:00:05]}  Bg3 {[%clk 0:01:06]} 37. Qg1 {[%clk 0:00:05]}  Qh5 {[%clk 0:01:00]} 38. Qh1 {[%clk 0:00:04]}  Bh4 {[%clk 0:00:58]} 39. Qh3 {[%clk 0:00:04]}  Qd1# {[%clk 0:00:56]} 0-1


[Site "https://www.chess.com"]

[Event "Titled Tuesday Blitz November 22 Early 2022"]
[White "Unat, Can Haktan"]
[Black "Gabdrakhmanov, Azat"]
[WhiteFideId "6398073"]
[BlackFideId "34189197"]
[WhiteElo "2146"]
[BlackElo "2254"]
[Result "1-0"]
[Round "08"]
[TimeControl "180+1"]
[Date "2022.11.23"]
[WhiteClock "0:00:08"]
[BlackClock "0:00:07"]

1. e4 {[%clk 0:03:00]}  c5 {[%clk 0:02:59]} 2. Nf3 {[%clk 0:02:38]}  e6 {[%clk 0:02:59]} 3. d4 {[%clk 0:02:37]}  cxd4 {[%clk 0:03:00]} 4. Nxd4 {[%clk 0:02:36]}  a6 {[%clk 0:03:01]} 5. c4 {[%clk 0:02:30]}  Qc7 {[%clk 0:03:00]} 6. Nc3 {[%clk 0:02:30]}  Nf6 {[%clk 0:03:00]} 7. Be2 {[%clk 0:02:30]}  b6 {[%clk 0:03:01]} 8. O-O {[%clk 0:02:30]}  Bb7 {[%clk 0:03:01]} 9. f3 {[%clk 0:02:31]}  d6 {[%clk 0:03:01]} 10. Be3 {[%clk 0:02:32]}  Be7 {[%clk 0:03:01]} 11. a4 {[%clk 0:02:32]}  O-O {[%clk 0:03:01]} 12. Qd2 {[%clk 0:02:33]}  Nbd7 {[%clk 0:02:57]} 13. a5 {[%clk 0:02:33]}  bxa5 {[%clk 0:02:57]} 14. Nb3 {[%clk 0:02:33]}  Rab8 {[%clk 0:02:57]} 15. Nxa5 {[%clk 0:02:34]}  Ba8 {[%clk 0:02:57]} 16. Rfb1 {[%clk 0:02:35]}  Rfd8 {[%clk 0:02:53]} 17. b4 {[%clk 0:02:35]}  Ne5 {[%clk 0:02:52]} 18. Qe1 {[%clk 0:02:33]}  d5 {[%clk 0:02:40]} 19. exd5 {[%clk 0:01:35]}  exd5 {[%clk 0:02:41]} 20. Nxd5 {[%clk 0:01:34]}  Bxd5 {[%clk 0:02:33]} 21. cxd5 {[%clk 0:01:35]}  Nxd5 {[%clk 0:02:32]} 22. Bd2 {[%clk 0:01:26]}  Bf6 {[%clk 0:01:27]} 23. Rc1 {[%clk 0:01:16]}  Qb6+ {[%clk 0:01:23]} 24. Qf2 {[%clk 0:01:14]}  Nxf3+ {[%clk 0:01:09]} 25. Bxf3 {[%clk 0:00:32]}  Bd4 {[%clk 0:01:08]} 26. Be1 {[%clk 0:00:33]}  Bxf2+ {[%clk 0:00:56]} 27. Bxf2 {[%clk 0:00:34]}  Qg6 {[%clk 0:00:50]} 28. Nc6 {[%clk 0:00:33]}  Kh8 {[%clk 0:00:41]} 29. Nxd8 {[%clk 0:00:29]}  Rxd8 {[%clk 0:00:36]} 30. Bxd5 {[%clk 0:00:29]}  h5 {[%clk 0:00:33]} 31. Bf3 {[%clk 0:00:25]}  Rd2 {[%clk 0:00:32]} 32. Rc6 {[%clk 0:00:21]}  Qd3 {[%clk 0:00:28]} 33. Re1 {[%clk 0:00:19]}  g6 {[%clk 0:00:24]} 34. Rc7 {[%clk 0:00:09]}  Kg7 {[%clk 0:00:22]} 35. Rce7 {[%clk 0:00:08]}  Qc2 {[%clk 0:00:20]} 36. Be3 {[%clk 0:00:05]}  Rd3 {[%clk 0:00:19]} 37. Bf2 {[%clk 0:00:03]}  Rd2 {[%clk 0:00:18]} 38. R7e2 {[%clk 0:00:04]}  Rxe2 {[%clk 0:00:17]} 39. Bxe2 {[%clk 0:00:04]}  Qb2 {[%clk 0:00:15]} 40. Bc5 {[%clk 0:00:03]}  Qa2 {[%clk 0:00:14]} 41. Kf1 {[%clk 0:00:03]}  g5 {[%clk 0:00:13]} 42. Bxh5 {[%clk 0:00:03]}  f6 {[%clk 0:00:13]} 43. Bf3 {[%clk 0:00:03]}  Qc4+ {[%clk 0:00:12]} 44. Be2 {[%clk 0:00:03]}  Qf4+ {[%clk 0:00:12]} 45. Kg1 {[%clk 0:00:04]}  Qe5 {[%clk 0:00:11]} 46. Kf1 {[%clk 0:00:04]}  Qxh2 {[%clk 0:00:10]} 47. Bg1 {[%clk 0:00:04]}  Qf4+ {[%clk 0:00:10]} 48. Bf2 {[%clk 0:00:05]}  Qxb4 {[%clk 0:00:11]} 49. Bf3 {[%clk 0:00:05]}  f5 {[%clk 0:00:10]} 50. Rd1 {[%clk 0:00:04]}  g4 {[%clk 0:00:10]} 51. Be2 {[%clk 0:00:04]}  a5 {[%clk 0:00:10]} 52. Rd4 {[%clk 0:00:05]}  Qb1+ {[%clk 0:00:10]} 53. Rd1 {[%clk 0:00:05]}  Qb7 {[%clk 0:00:10]} 54. Bd4+ {[%clk 0:00:04]}  Kg6 {[%clk 0:00:10]} 55. Be5 {[%clk 0:00:05]}  a4 {[%clk 0:00:10]} 56. Rd6+ {[%clk 0:00:05]}  Kf7 {[%clk 0:00:10]} 57. Bc4+ {[%clk 0:00:05]}  Ke7 {[%clk 0:00:10]} 58. Re6+ {[%clk 0:00:05]}  Kd7 {[%clk 0:00:11]} 59. Rd6+ {[%clk 0:00:06]}  Ke7 {[%clk 0:00:10]} 60. Re6+ {[%clk 0:00:04]}  Kf8 {[%clk 0:00:11]} 61. Bd6+ {[%clk 0:00:04]}  Kg7 {[%clk 0:00:10]} 62. Re7+ {[%clk 0:00:05]}  Qxe7 {[%clk 0:00:09]} 63. Bxe7 {[%clk 0:00:05]}  Kg6 {[%clk 0:00:08]} 64. g3 {[%clk 0:00:06]}  f4 {[%clk 0:00:07]} 65. gxf4 {[%clk 0:00:07]}  Kf5 {[%clk 0:00:08]} 66. Bd6 {[%clk 0:00:07]}  Ke4 {[%clk 0:00:08]} 67. Be5 {[%clk 0:00:08]}  a3 {[%clk 0:00:08]} 68. Ba2 {[%clk 0:00:08]}  Kf5 {[%clk 0:00:07]} 69. Kg2 {[%clk 0:00:08]} 1-0


[Site "https://www.chess.com"]